fUST/lending_fUST_20260228
["ID","MTS","AMOUNT","RATE_DAILY","PERIOD"]
[406848835,1772230232291,-500.0,0.00017999,2]
[406848837,1772230232300,-500.0,0.00017999,2]
[406848839,1772230232310,-500.0,0.00017999,2]
[406848841,1772230232319,-500.0,0.00017999,2]
[406848843,1772230232328,-500.0,0.00017999,2]
[406848845,1772230232338,-350.57814727,0.00017999,2]
[406848847,1772230232349,-149.42185273,0.00017999,2]
[406848848,1772230232359,-382.31343164,0.00017999,2]
[406848850,1772230232370,-117.68656836,0.00017999,2]
[406848852,1772230232379,-500.0,0.00017999,2]
[406848854,1772230232388,-61.54886632,0.00017999,2]
[406848856,1772230232399,-438.45113368,0.00017999,2]
[406848857,1772230232409,-460.27923586,0.00017999,2]
[406848885,1772230238291,-39.72076414,0.00017999,2]
[406848887,1772230238300,-500.0,0.00017999,2]
[406848889,1772230238309,-500.0,0.00017999,2]
[406848891,1772230238319,-500.0,0.00017999,2]
[406848893,1772230238328,-151.032,0.00017999,2]
[406848918,1772230238544,-500.0,0.00017999,2]
[406848920,1772230238558,-72.01334822,0.00017999,2]
[406848922,1772230238569,-427.98665178,0.00017999,2]
[406848924,1772230238579,-263.0168681,0.00017999,2]
[406848926,1772230238588,-191.68867884,0.00017999,2]
[406848928,1772230238599,-308.31132116,0.00017999,2]
[406848930,1772230238610,-165.03254921,0.00017999,2]
[406848933,1772230238620,-271.61039996,0.00017999,2]
[406848935,1772230238629,-500.0,0.00017999,2]
[406848937,1772230238639,-500.0,0.00017999,2]
[406848939,1772230238648,-472.61322434,0.00017999,2]
[406848940,1772230238658,-180.91545319,0.00017999,2]
[406848942,1772230238667,-338.2618346,0.00018,2]
[406849155,1772230240629,-989.83631068,0.00018,2]
[406849157,1772230240640,-325.7999028,0.00018,2]
[406849432,1772230243248,-5706.06383417,0.00018,2]
[406849444,1772230243358,-800.0,0.00018,2]
[406849456,1772230246275,-9664.7457547,0.0001782,2]
[406849457,1772230246285,-57253.47863746,0.00018,2]
[406849478,1772231197568,-298.42025008,0.00015641,2]
[406849485,1772231411871,300.0,0.00014452,120]
[406849486,1772231413485,300.0,0.00014452,120]
[406849487,1772231415201,300.0,0.00014452,120]
[406849488,1772231416932,300.0,0.00014452,120]
[406849489,1772231418721,300.0,0.00014452,120]
[406849490,1772231420453,300.0,0.00014452,120]
[406849491,1772231422181,300.0,0.00014452,120]
[406849492,1772231423921,300.0,0.00014452,120]
[406849493,1772231425673,300.0,0.00014452,120]
[406849494,1772231427762,300.0,0.00014452,120]
[406849531,1772231432407,-167.48190523,0.00015736,2]
[406849533,1772231432417,-200.0,0.00015752,3]
[406849535,1772231432427,-160.63541141,0.00015799,2]
[406849537,1772231432436,-179.11,0.000158,2]
[406849539,1772231432445,-241.19844495,0.00015853,2]
[406849541,1772231432455,-2100.0,0.00016536,2]
[406849543,1772231432464,-197.2294934,0.00017568,2]
[406849545,1772231432473,-805.59070391,0.0001764,2]
[406849547,1772231432483,-197.62864818,0.00017736,2]
[406849549,1772231432492,-744.82189483,0.00017806,2]
[406849551,1772231432501,-150.0,0.00017808,2]
[406849553,1772231432511,-177.96243906,0.00017878,2]
[406849555,1772231432520,-177.96243905,0.00017889,2]
[406849557,1772231432530,-300.0,0.00017899,2]
[406849559,1772231432540,-6143.25776877,0.000179,2]
[406849561,1772231432550,-1202.02404452,0.000179,2]
[406849770,1772231438403,-2674.60743027,0.00017099,2]
[406849772,1772231438412,-99.19014823,0.000179,2]
[406849774,1772231438422,-177.96243905,0.000179,2]
[406849776,1772231438432,-250.0,0.00017968,2]
[406849778,1772231438441,-250.0,0.00017968,2]
[406849780,1772231438450,-668.65185757,0.00017968,2]
[406849782,1772231438460,-250.0,0.00017968,2]
[406849784,1772231438469,-500.0,0.00017968,2]
[406849786,1772231438480,-250.0,0.00017968,2]
[406849788,1772231438489,-250.0,0.00017968,2]
[406849790,1772231438499,-500.0,0.00017968,2]
[406849792,1772231438510,-250.0,0.00017968,2]
[406849794,1772231438519,-231.69978509,0.00017968,2]
[406849800,1772231438570,-268.30021491,0.00017968,2]
[406849802,1772231438579,-250.0,0.00017968,2]
[406849804,1772231438589,-500.0,0.00017968,2]
[406849806,1772231438598,-201.93286099,0.00017968,2]
[406849808,1772231438609,-250.0,0.00017968,2]
[406849810,1772231438618,-250.0,0.00017968,2]
[406849812,1772231438627,-500.0,0.00017968,2]
[406849814,1772231438636,-209.40437684,0.00017968,2]
[406849816,1772231438646,-500.0,0.00017968,2]
[406849818,1772231438655,-250.0,0.00017968,2]
[406849820,1772231438666,-500.0,0.00017968,2]
[406849822,1772231438675,-217.15233878,0.00017968,2]
[406849824,1772231438684,-500.0,0.00017968,2]
[406849826,1772231438694,-250.0,0.00017968,2]
[406849828,1772231438703,-500.0,0.00017968,2]
[406849830,1772231438712,-225.18697532,0.00017968,2]
[406849832,1772231438723,-500.0,0.00017968,2]
[406849834,1772231438732,-250.0,0.00017968,2]
[406849836,1772231438741,-500.0,0.00017968,2]
[406849838,1772231438750,-233.51889341,0.00017968,2]
[406849840,1772231438759,-500.0,0.00017968,2]
[406849842,1772231438768,-250.0,0.00017968,2]
[406849844,1772231438778,-250.0,0.00017968,2]
[406849846,1772231438787,-500.0,0.00017968,2]
[406849848,1772231438796,-500.0,0.00017968,2]
[406849850,1772231438807,-242.15909246,0.00017968,2]
[406849852,1772231438817,-250.0,0.00017968,2]
[406849854,1772231438826,-500.0,0.00017968,2]
[406849856,1772231438838,-500.0,0.00017968,2]
[406849858,1772231438848,-251.11897888,0.00017968,2]
[406849860,1772231438857,-250.0,0.00017968,2]
[406849862,1772231438867,-500.0,0.00017968,2]
[406849864,1772231438876,-250.0,0.00017968,2]
[406849866,1772231438885,-500.0,0.00017968,2]
[406849868,1772231438894,-260.4103811,0.00017968,2]
[406849870,1772231438903,-250.0,0.00017968,2]
[406849872,1772231438912,-250.0,0.00017968,2]
[406849874,1772231438921,-270.0455652,0.00017968,2]
[406849876,1772231438932,-250.0,0.00017968,2]
[406849878,1772231438941,-194.72792766,0.00017968,2]
[406849880,1772231438951,-280.03725112,0.00017968,2]
[406849882,1772231438960,-250.0,0.00017968,2]
[406849884,1772231438969,-290.39862941,0.00017968,2]
[406849886,1772231438978,-250.0,0.00017968,2]
[406849888,1772231438987,-301.1433787,0.00017968,2]
[406849890,1772231438996,-250.0,0.00017968,2]
[406849892,1772231439005,-250.0,0.00017968,2]
[406849894,1772231439015,-228.52827554,0.00017968,2]
[406849896,1772231439024,-250.0,0.00017968,2]
[406849897,1772231439034,-250.0,0.00017968,2]
[406849898,1772231439043,-250.0,0.00017968,2]
[406849899,1772231439053,-363.34881021,0.00017968,2]
[406849900,1772231439062,-250.0,0.00017968,2]
[406849901,1772231439071,-250.0,0.00017968,2]
[406849902,1772231439080,-250.0,0.00017968,2]
[406849903,1772231439089,-250.0,0.00017968,2]
[406849904,1772231439099,-250.0,0.00017968,2]
[406849905,1772231439108,-250.0,0.00017968,2]
[406849906,1772231439118,-250.0,0.00017968,2]
[406849907,1772231439127,-250.0,0.00017968,2]
[406849908,1772231439136,-250.0,0.00017968,2]
[406849909,1772231439146,-250.0,0.00017968,2]
[406849910,1772231439155,-250.0,0.00017968,2]
[406849911,1772231439165,-250.0,0.00017968,2]
[406849912,1772231439175,-250.0,0.00017968,2]
[406849913,1772231439188,-250.0,0.00017968,2]
[406849914,1772231439198,-250.0,0.00017968,2]
[406849916,1772231439208,-3029.6373114,0.0001797,2]
[406849918,1772231439217,-1184.6076044,0.0001797,2]
[406849920,1772231439227,-500.0,0.00017977,2]
[406849921,1772231439236,-372.51351,0.00017977,2]
[406849923,1772231439246,-509.43865141,0.00017978,2]
[406849925,1772231439257,-151.0,0.00017978,2]
[406849927,1772231439266,-151.0,0.00017978,2]
[406849929,1772231439276,-151.0,0.00017978,2]
[406849931,1772231439285,-151.0,0.00017978,2]
[406849933,1772231439294,-151.0,0.00017978,2]
[406849935,1772231439304,-151.0,0.00017978,2]
[406849937,1772231439313,-151.0,0.00017978,2]
[406849939,1772231439323,-152.127,0.00017988,2]
[406849941,1772231439332,-251.024462,0.00017989,2]
[406849943,1772231439343,-251.024462,0.00017989,2]
[406849945,1772231439352,-251.024462,0.00017989,2]
[406849947,1772231439362,-251.024462,0.00017989,2]
[406849949,1772231439372,-500.0,0.00017998,2]
[406849951,1772231439381,-251.024462,0.00017999,2]
[406849953,1772231439390,-251.024462,0.00017999,2]
[406849955,1772231439399,-251.024462,0.00017999,2]
[406849957,1772231439408,-251.024462,0.00017999,2]
[406849959,1772231439418,-500.0,0.00017999,2]
[406849961,1772231439427,-500.0,0.00017999,2]
[406849963,1772231439436,-500.0,0.00017999,2]
[406849965,1772231439446,-500.0,0.00017999,2]
[406849967,1772231439455,-500.0,0.00017999,2]
[406849970,1772231439464,-500.0,0.00017999,2]
[406849971,1772231439473,-500.0,0.00017999,2]
[406849973,1772231439482,-500.0,0.00017999,2]
[406849975,1772231439491,-500.0,0.00017999,2]
[406849977,1772231439501,-500.0,0.00017999,2]
[406849979,1772231439511,-500.0,0.00017999,2]
[406849981,1772231439520,-500.0,0.00017999,2]
[406849983,1772231439529,-383.07154764,0.00017999,2]
[406849985,1772231439539,-2500.0,0.00018,5]
[406849987,1772231439549,-35657.14094005,0.00018,2]
[406849989,1772231439562,-2507.84039351,0.00018,2]
[406849992,1772231439573,-10409.85346734,0.00018,2]
[406849994,1772231439585,-7867.23047152,0.00018,2]
[406849999,1772231439624,-5494.86399294,0.00018,2]
[406850155,1772231441086,-250.0,0.00017968,2]
[406850157,1772231441095,-500.0,0.00017968,2]
[406850159,1772231441105,-250.0,0.00017968,2]
[406850161,1772231441114,-250.0,0.00017968,2]
[406850163,1772231441123,-250.0,0.00017968,2]
[406850165,1772231441132,-500.0,0.00017968,2]
[406850168,1772231441141,-7414.9310852,0.00018,2]
[406850170,1772231441152,-1175.66510949,0.00018,2]
[406850173,1772231441173,-250.0,0.00017968,2]
[406850175,1772231441187,-2449.93381741,0.00018,2]
[406850178,1772231441198,-1473.19474389,0.00018,2]
[406850393,1772231443431,-500.0,0.00017968,2]
[406850395,1772231443441,-250.0,0.00017968,2]
[406850397,1772231443450,-500.0,0.00017968,2]
[406850399,1772231443459,-250.0,0.00017968,2]
[406850401,1772231443468,-500.0,0.00017968,2]
[406850403,1772231443477,-250.0,0.00017968,2]
[406850405,1772231443488,-20556.38983847,0.00018,2]
[406850407,1772231443499,-865.06544647,0.00018,2]
[406850409,1772231443510,-14184.76249413,0.00018,2]
[406850421,1772231443606,-500.0,0.00017968,2]
[406850423,1772231443616,-306.99127554,0.00018,2]
[406850425,1772231443627,-6560.50386647,0.00018,2]
[406850430,1772231443664,-250.0,0.00017968,2]
[406850432,1772231443673,-171.537,0.00018,2]
[406850434,1772231443684,-415.20624435,0.00018,2]
[406850436,1772231443696,-1504.3502,0.00018,2]
[406850718,1772231446532,-13440.1566185,0.0001782,2]
[406850720,1772231446542,-500.0,0.00017968,2]
[406850722,1772231446551,-250.0,0.00017968,2]
[406850723,1772231446562,-500.0,0.00017968,2]
[406850724,1772231446573,-250.0,0.00017968,2]
[406850725,1772231446585,-500.0,0.00017968,2]
[406850726,1772231446595,-250.0,0.00017968,2]
[406850727,1772231446604,-250.0,0.00017968,2]
[406850728,1772231446614,-500.0,0.00017968,2]
[406850729,1772231446625,-250.0,0.00017968,2]
[406850730,1772231446636,-250.0,0.00017968,2]
[406850731,1772231446647,-76847.61397514,0.00018,2]
[406850750,1772231473258,500.0,0.00013699,2]
[406850751,1772231473310,505.51236445,0.00014247,2]
[406850754,1772231769437,300.0,0.00014309,120]
[406850755,1772231771186,300.0,0.00014309,120]
[406850756,1772231941164,170.604504,8.868e-05,2]
[406850757,1772232011714,300.0,0.00014147,120]
[406850758,1772232377563,-200.0,0.00018897,120]
[406850759,1772232377580,-200.0,0.00019114,120]
[406850760,1772232377644,-200.0,0.00019262,120]
[406850761,1772232377744,-132.0,0.00019276,120]
[406850762,1772232377759,-68.0,0.00019276,120]
[406850763,1772232377769,-132.0,0.00019352,120]
[406850764,1772232377840,-68.0,0.00019352,120]
[406850765,1772232377870,-170.0,0.0001938,120]
[406850766,1772232377920,-23.0,0.0001938,120]
[406850767,1772232377944,-68.0,0.00019517,120]
[406850768,1772232377993,-61.0,0.00019517,120]
[406850769,1772232378008,-71.0,0.00019517,120]
[406850770,1772232378019,-122.0,0.0002,120]
[406850771,1772232378059,-23.0,0.0002,120]
[406850772,1772232378097,-154.0,0.0002,120]
[406850773,1772232378143,-132.0,0.0002,120]
[406850774,1772232378252,-200.0,0.0002,120]
[406850775,1772232378303,-16.56590621,0.0002,120]
[406850776,1772232378370,-166.86818758,0.0002,120]
[406850777,1772232378380,-33.13181242,0.0002,120]
[406850778,1772232378429,-966.86818758,0.0002,120]
[406850779,1772232378457,-132.73771795,0.0002,120]
[406850780,1772232378482,-200.0,0.0002,120]
[406850781,1772232378557,-183.43409379,0.0002,120]
[406850782,1772232378587,-749.56485978,0.0002,120]
[406850783,1772232378597,-217.3033278,0.0002,120]
[406850784,1772232378619,-34.73667152,0.0002,120]
[406850785,1772232378986,-193.0,0.00020349,120]
[406850786,1772232378996,-7.0,0.000204,120]
[406850787,1772232379014,-159.0,0.000204,120]
[406850788,1772232379023,-41.0,0.000204,120]
[406850789,1772232630125,182.0,0.00018397,120]
[406850790,1772232631404,11.0,0.00019317,120]
[406850815,1772232632425,-182.62036959,0.00013644,2]
[406850817,1772232632434,-226.45494856,0.00013644,2]
[406850820,1772232632447,-387.54505144,0.00013644,2]
[406850822,1772232632456,-172.84855229,0.00013699,2]
[406850824,1772232632466,-500.0,0.00013699,2]
[406850826,1772232632475,-500.0,0.00013699,2]
[406850828,1772232632485,-1000.0,0.00014247,2]
[406850830,1772232632495,-505.51236445,0.00014247,2]
[406850832,1772232632504,-369.17748626,0.00015074,2]
[406850835,1772232632523,-375.64440857,0.00015074,2]
[406850837,1772232632534,-276.34559143,0.00015169,2]
[406850839,1772232632548,-490.72224615,0.00015169,2]
[406850841,1772232632558,-215.49203611,0.00015644,2]
[406850843,1772232632567,-242.083901,0.00016992,2]
[406850845,1772232632577,-300.0,0.00017098,2]
[406850847,1772232632586,-2674.60743027,0.00017099,2]
[406850849,1772232632595,-256.89923172,0.00017099,2]
[406850851,1772232632606,-597.0,0.00017099,2]
[406850924,1772232638563,-794.90635636,0.00017099,2]
[406850926,1772232638572,-13447.204809,0.000171,2]
[406850928,1772232638583,-165.40293696,0.00017121,2]
[406850930,1772232638592,-250.0,0.00017211,2]
[406850932,1772232638602,-201.93286099,0.00017211,2]
[406850934,1772232638614,-209.40437684,0.00017211,2]
[406850935,1772232638623,-217.15233878,0.00017211,2]
[406850938,1772232638633,-225.18697532,0.00017211,2]
[406850940,1772232638644,-233.51889341,0.00017211,2]
[406850942,1772232638653,-242.15909246,0.00017211,2]
[406850944,1772232638663,-251.11897888,0.00017211,2]
[406850946,1772232638673,-260.4103811,0.00017211,2]
[406850948,1772232638682,-270.0455652,0.00017211,2]
[406850950,1772232638692,-280.03725112,0.00017211,2]
[406850951,1772232638701,-644.79446246,0.00017211,2]
[406850954,1772232638711,-418.99709012,0.00017211,2]
[406850956,1772232638721,-1000.0,0.00017221,2]
[406850957,1772232638731,-1000.0,0.00017221,2]
[406850959,1772232638740,-1000.0,0.00017221,2]
[406850962,1772232638751,-1000.0,0.00017221,2]
[406850991,1772232639024,-1000.0,0.00017221,2]
[406850993,1772232639034,-1000.0,0.00017221,2]
[406850995,1772232639045,-1000.0,0.00017221,2]
[406850997,1772232639055,-1000.0,0.00017221,2]
[406850999,1772232639064,-1000.0,0.00017221,2]
[406851001,1772232639074,-1000.0,0.00017221,2]
[406851003,1772232639084,-1000.0,0.00017221,2]
[406851005,1772232639094,-1000.0,0.00017221,2]
[406851007,1772232639104,-1000.0,0.00017221,2]
[406851009,1772232639113,-1000.0,0.00017221,2]
[406851011,1772232639123,-1000.0,0.00017221,2]
[406851013,1772232639133,-1000.0,0.00017221,2]
[406851015,1772232639143,-386.679,0.00017221,2]
[406851017,1772232639153,-168.0,0.00017331,2]
[406851019,1772232639162,-168.0,0.00017332,2]
[406851021,1772232639172,-168.0,0.0001737,2]
[406851023,1772232639182,-168.0,0.0001747,2]
[406851025,1772232639192,-168.0,0.00017538,2]
[406851027,1772232639202,-599.77439122,0.0001764,2]
[406851029,1772232639212,-248.36370264,0.00017644,2]
[406851031,1772232639223,-168.0,0.0001772,2]
[406851033,1772232639233,-150.0,0.00017808,2]
[406851035,1772232639242,-250.0,0.00017809,2]
[406851037,1772232639253,-250.0,0.00017809,2]
[406851039,1772232639263,-250.0,0.00017809,2]
[406851041,1772232639272,-250.0,0.00017809,2]
[406851043,1772232639282,-271.32977672,0.00017809,2]
[406851045,1772232639292,-500.0,0.00017809,2]
[406851047,1772232639301,-635.57308512,0.00017809,2]
[406851049,1772232639311,-250.0,0.00017809,2]
[406851051,1772232639321,-250.0,0.00017809,2]
[406851053,1772232639330,-250.0,0.00017809,2]
[406851055,1772232639340,-250.0,0.00017809,2]
[406851057,1772232639349,-250.0,0.00017809,2]
[406851059,1772232639358,-295.97260585,0.00017809,2]
[406851061,1772232639367,-500.0,0.00017809,2]
[406851063,1772232639376,-188.957,0.00017889,2]
[406851065,1772232639385,-500.0,0.00017969,2]
[406851067,1772232639394,-500.0,0.00017978,2]
[406851069,1772232639403,-500.0,0.00017986,2]
[406851071,1772232639413,-500.0,0.00017986,2]
[406851073,1772232639422,-163.62369159,0.00017986,2]
[406851075,1772232639431,-500.0,0.00017986,2]
[406851077,1772232639440,-500.0,0.00017986,2]
[406851079,1772232639449,-500.0,0.00017986,2]
[406851081,1772232639458,-500.0,0.00017986,2]
[406851083,1772232639467,-500.0,0.00017986,2]
[406851084,1772232639476,-500.0,0.00017986,2]
[406851087,1772232639486,-500.0,0.00017986,2]
[406851089,1772232639495,-500.0,0.00017986,2]
[406851091,1772232639509,-500.0,0.00017986,2]
[406851093,1772232639518,-500.0,0.00017986,2]
[406851095,1772232639528,-500.0,0.00017986,2]
[406851097,1772232639541,-258.78258793,0.00017986,2]
[406851099,1772232639551,-500.0,0.00017986,2]
[406851101,1772232639561,-500.0,0.00017986,2]
[406851102,1772232639570,-3034.8174471,0.00017988,2]
[406851104,1772232639581,-350.99276791,0.00017988,2]
[406851106,1772232639591,-193.47416794,0.00017999,2]
[406851108,1772232639601,-221.11333479,0.00017999,2]
[406851110,1772232639612,-345.14409602,0.00017999,2]
[406851112,1772232639622,-182.82446161,0.00017999,2]
[406851114,1772232639632,-328.75494687,0.00017999,2]
[406851116,1772232639642,-678.31405302,0.00017999,2]
[406851118,1772232639651,-156.60655121,0.00017999,2]
[406851120,1772232639661,-500.0,0.00017999,2]
[406851122,1772232639670,-66074.21585018,0.00018,2]
[406851125,1772232639684,-262.347,0.00018,2]
[406851128,1772232639708,-1583.86677274,0.00018,2]
[406851131,1772232639719,-11612.54926772,0.00018,2]
[406851215,1772232640987,-250.0,0.00017211,2]
[406851217,1772232640997,-391.89463624,0.00017211,2]
[406851219,1772232641006,-536.63316083,0.00018,2]
[406851225,1772232641049,-405.62438089,0.00018,2]
[406851501,1772232643575,-570.0,0.00018,2]
[406851624,1772232646560,-1500.0,0.00018,2]
[406851628,1772232646631,-6178.44668816,0.00018,2]
[406851629,1772232646643,-49764.18205591,0.00018,2]
[406851630,1772232646655,-8021.56407784,0.00018,2]
[406851631,1772232646668,-6497.06471107,0.00018,2]
[406851634,1772233243721,-173.60260788,0.00013273,2]
[406851635,1772233243751,-500.0,0.00013273,2]
[406851636,1772233243779,-500.0,0.00013273,2]
[406851637,1772233243808,-500.0,0.00013273,2]
[406851638,1772233243834,-608.0,0.00013273,2]
[406851639,1772233260473,-169.69084742,0.00015186,2]
[406851640,1772233277262,-744.82189483,0.00016852,2]
[406851641,1772233277290,-250.50481628,0.00016939,2]
[406851642,1772233277320,-401.16278045,0.00017099,2]
[406851643,1772233277349,-200.23519995,0.00017186,2]
[406851644,1772233294045,-399.84959415,0.0001764,2]
[406851645,1772233294074,-313.1958361,0.00017715,2]
[406851646,1772233323326,-650.35441179,0.00017,2]
[406851647,1772233323358,-162.29232647,0.00017358,2]
[406851648,1772233323388,-638.83619812,0.00017715,2]
[406851666,1772233352730,-266.5663961,0.0001764,2]
[406851667,1772233352761,-47.96796578,0.00017715,2]
[406851707,1772233831577,-167.502713,0.0001695,2]
[406851708,1772233831587,-617.62954025,0.0001695,2]
[406851709,1772233831807,-50.37045975,0.0001695,2]
[406851710,1772233831827,-342.98086761,0.00017099,2]
[406851711,1772233831840,-289.24017871,0.00017099,2]
[406851712,1772233831850,-300.0,0.00017222,2]
[406851713,1772233831860,-571.48490518,0.00017223,2]
[406851714,1772233831871,-2813.44562919,0.00017223,2]
[406851783,1772233838138,-31883.55874123,0.00017223,2]
[406851785,1772233838149,-809.1031,0.00017223,2]
[406851787,1772233838160,-15687.93598147,0.00017223,2]
[406852006,1772233840182,-841.52588397,0.00017223,2]
[406852008,1772233840193,-260.14724632,0.00017223,2]
[406852273,1772233842817,-3476.33145951,0.00017223,2]
[406852275,1772233842828,-302.62139999,0.00017223,2]
[406852287,1772233842939,-4587.0657763,0.00017223,2]
[406852289,1772233842952,-806.99127554,0.00017223,2]
[406852291,1772233842964,-930.35349489,0.00017223,2]
[406852293,1772233842974,-159.04647994,0.00017323,2]
[406852295,1772233842985,-744.82189483,0.00017386,2]
[406852297,1772233842995,-150.0,0.000178,2]
[406852299,1772233843004,-177.71093073,0.00017808,2]
[406852301,1772233843015,-56.6861866,0.00017808,2]
[406852304,1772233843027,-93.3138134,0.00017808,2]
[406852306,1772233843036,-2366.56695265,0.00017809,2]
[406852308,1772233843048,-308.04047762,0.00017809,2]
[406852310,1772233843058,-89.5745341,0.0001782,2]
[406852348,1772233845805,-13150.3115858,0.0001782,2]
[406852349,1772233845816,-983.43426962,0.0001782,2]
[406852350,1772233845829,-1464.61559195,0.0001782,2]
[406852351,1772233845839,-6083.09513125,0.0001789,2]
[406852352,1772233845848,-500.0,0.00017969,2]
[406852353,1772233845857,-250.0,0.00017989,2]
[406852354,1772233845866,-250.0,0.00017989,2]
[406852355,1772233845875,-250.0,0.00017989,2]
[406852356,1772233845884,-500.0,0.00017989,2]
[406852357,1772233845894,-250.0,0.00017989,2]
[406852358,1772233845903,-500.0,0.00017989,2]
[406852359,1772233845916,-253.4431811,0.00017989,2]
[406852360,1772233845925,-262.25,0.0001799,3]
[406852361,1772233846120,-188.957,0.00017999,2]
[406852362,1772233846138,-100463.01518127,0.00018,2]
[406852363,1772233846151,-30809.23894176,0.00018,2]
[406852364,1772233846209,-16534.92346027,0.00018,2]
[406852365,1772233846220,-4200.0,0.00018,2]
[406852366,1772233846231,-3384.73427491,0.00018,2]
[406852369,1772234404949,161.44,9.5e-05,2]
[406852370,1772234643907,375.12216432,9.501e-05,2]
[406852375,1772234819096,-161.44,9.6e-05,2]
[406852376,1772234819119,-136.98025008,9.65e-05,2]
[406852380,1772235005444,151.09,9.5e-05,2]
[406852381,1772235006009,151.09,9.5e-05,2]
[406852382,1772235031184,-151.09,9.6e-05,2]
[406852383,1772235031211,-151.09,9.6e-05,2]
[406852384,1772235031238,-151.09,9.6e-05,2]
[406852385,1772235031269,-68.42288841,9.6e-05,2]
[406852419,1772235031973,-82.66711159,9.6e-05,2]
[406852421,1772235031982,-153.12594534,9.675e-05,2]
[406852423,1772235031991,-555.0,9.675e-05,2]
[406852425,1772235032000,-161.44,9.7e-05,2]
[406852427,1772235032009,-54.58478099,9.7e-05,2]
[406852439,1772235032112,-106.85521901,9.7e-05,2]
[406852441,1772235032122,-151.09,9.7e-05,2]
[406852443,1772235032131,-151.09,9.7e-05,2]
[406852445,1772235032139,-151.09,9.7e-05,2]
[406852447,1772235032148,-151.09,9.7e-05,2]
[406852449,1772235032158,-161.44,9.8e-05,2]
[406852451,1772235032167,-151.09,9.8e-05,2]
[406852453,1772235032175,-151.09,9.8e-05,2]
[406852455,1772235032185,-151.09,9.8e-05,2]
[406852457,1772235032193,-161.44,9.9e-05,2]
[406852459,1772235032202,-151.09,9.9e-05,2]
[406852461,1772235032211,-151.09,9.9e-05,2]
[406852463,1772235032220,-151.09,9.9e-05,2]
[406852465,1772235032229,-151.09,9.9e-05,2]
[406852467,1772235032238,-300.0,9.995e-05,2]
[406852469,1772235032252,-300.0,9.995e-05,2]
[406852471,1772235032262,-300.0,9.995e-05,2]
[406852473,1772235032271,-300.0,9.995e-05,2]
[406852475,1772235032281,-300.0,9.995e-05,2]
[406852477,1772235032291,-300.0,9.995e-05,2]
[406852479,1772235032300,-300.0,9.995e-05,2]
[406852481,1772235032309,-300.0,9.995e-05,2]
[406852483,1772235032318,-300.0,9.995e-05,2]
[406852485,1772235032328,-300.0,9.995e-05,2]
[406852487,1772235032338,-300.0,9.995e-05,2]
[406852489,1772235032347,-300.0,9.995e-05,2]
[406852491,1772235032357,-300.0,9.995e-05,2]
[406852493,1772235032366,-300.0,9.995e-05,2]
[406852495,1772235032376,-300.0,9.995e-05,2]
[406852497,1772235032385,-161.44,0.0001,2]
[406852499,1772235032394,-151.09,0.0001,2]
[406852501,1772235032403,-151.09,0.0001,2]
[406852503,1772235032412,-44.80567185,0.0001,2]
[406852608,1772235038458,-106.28432815,0.0001,2]
[406852610,1772235038467,-151.09,0.0001,2]
[406852612,1772235038477,-161.44,0.000101,2]
[406852614,1772235038486,-161.44,0.000101,2]
[406852617,1772235038505,-151.09,0.000101,2]
[406852620,1772235038522,-151.09,0.000101,2]
[406852623,1772235038540,-151.09,0.000101,2]
[406852626,1772235038559,-600.0,0.00010194,2]